bitfinex/quotes_BTCUSD_20221001
["timestamp","ask_amount","ask_price","bid_price","bid_amount"]
[1664595739348,0.258417,19410.0,19409.0,0.75554425]
[1664595740251,0.258417,19410.0,19409.0,0.83554425]
[1664595741445,0.258417,19410.0,19409.0,0.75554425]
[1664595742368,0.258417,19410.0,19409.0,1.49924867]
[1664595742594,0.258417,19410.0,19409.0,1.43316884]
[1664595743045,0.258417,19410.0,19409.0,1.12715642]
[1664595743513,0.258417,19410.0,19409.0,1.04715642]
[1664595743971,0.258417,19410.0,19409.0,0.75554425]
[1664595744210,0.258417,19410.0,19409.0,0.59173144]
[1664595745606,0.258417,19410.0,19409.0,0.51173144]
[1664595746349,0.258417,19410.0,19409.0,0.59173144]
[1664595747734,0.258417,19410.0,19409.0,0.51173144]
[1664595748181,0.258417,19410.0,19409.0,0.59173144]
[1664595749959,0.258417,19410.0,19409.0,0.51173144]
[1664595750183,0.258417,19410.0,19409.0,0.59173144]
[1664595751403,0.258417,19410.0,19409.0,0.51173144]
[1664595751644,0.616109,19410.0,19409.0,0.51165784]
[1664595751863,0.258417,19410.0,19409.0,0.51165784]
[1664595752230,0.258417,19410.0,19409.0,0.59165784]
[1664595753661,0.258417,19410.0,19409.0,0.51165784]
[1664595754234,0.258417,19410.0,19409.0,0.59165784]
[1664595755546,0.258417,19410.0,19409.0,0.51165784]
[1664595756169,0.258417,19410.0,19409.0,0.59165784]
[1664595757432,0.258417,19410.0,19409.0,0.51165784]
[1664595758422,0.258417,19410.0,19409.0,0.59165784]
[1664595759183,0.258417,19410.0,19409.0,0.59032717]
[1664595759496,0.258417,19410.0,19409.0,0.51032717]
[1664595760192,0.258417,19410.0,19409.0,0.59032717]
[1664595760985,0.258417,19410.0,19409.0,0.08]
[1664595761288,1.30804376,19410.0,19409.0,0.08]
[1664595761545,0.128829,19409.0,19404.0,0.515332]
[1664595761767,0.257438,19408.0,19405.0,0.51173144]
[1664595762001,0.46227733,19408.0,19405.0,0.51173144]
[1664595762209,0.46227733,19408.0,19405.0,0.89822144]
[1664595762423,0.257438,19408.0,19405.0,0.89822144]
[1664595763751,0.386275,19408.0,19405.0,0.89822144]
[1664595763956,0.257452,19407.0,19405.0,0.89822144]
[1664595764233,0.257452,19407.0,19405.0,0.96422144]
[1664595764446,0.386291,19407.0,19405.0,0.96422144]
[1664595765591,0.386291,19407.0,19405.0,0.89822144]
[1664595766221,0.386291,19407.0,19405.0,0.97622144]
[1664595767558,0.386291,19407.0,19405.0,0.89822144]
[1664595768263,0.386291,19407.0,19405.0,0.97622144]
[1664595769608,0.386291,19407.0,19405.0,0.89822144]
[1664595769828,0.386291,19407.0,19406.0,0.357692]
[1664595770050,0.386291,19407.0,19405.0,0.89822344]
[1664595770570,0.386291,19407.0,19405.0,0.58973144]
[1664595771025,0.386291,19407.0,19405.0,0.97622344]
[1664595771375,0.386291,19407.0,19406.0,0.357692]
[1664595771662,0.386291,19407.0,19405.0,0.89822244]
[1664595772312,0.386291,19407.0,19405.0,0.97622244]
[1664595773028,0.386291,19407.0,19406.0,0.357692]
[1664595773248,0.386291,19407.0,19405.0,0.97622244]
[1664595773471,0.386291,19407.0,19405.0,0.89822244]
[1664595774310,0.386291,19407.0,19406.0,0.357692]
[1664595774528,0.386291,19407.0,19405.0,0.97622244]
[1664595775419,0.386291,19407.0,19405.0,0.89822244]
[1664595775699,0.386291,19407.0,19405.0,0.89821644]
[1664595776356,0.386291,19407.0,19405.0,0.97621644]
[1664595777496,0.257452,19407.0,19406.0,0.357692]
[1664595777718,0.257452,19407.0,19405.0,0.89821644]
[1664595777908,0.257452,19407.0,19405.0,1.41354744]
[1664595778376,0.257452,19407.0,19405.0,1.49154744]
[1664595780136,0.257452,19407.0,19405.0,1.41354744]
[1664595780378,0.257452,19407.0,19405.0,1.49154744]
[1664595781178,0.257452,19407.0,19406.0,0.357692]
[1664595781414,0.257452,19407.0,19405.0,1.49154744]
[1664595781657,0.257452,19407.0,19405.0,0.51173144]
[1664595781852,0.257452,19407.0,19406.0,0.357617]
[1664595782061,0.257452,19407.0,19405.0,1.41354744]
[1664595782281,0.257452,19407.0,19406.0,0.357617]
[1664595782500,0.257452,19407.0,19405.0,1.49154744]
[1664595782763,0.257452,19407.0,19405.0,0.58973144]
[1664595782983,0.257452,19407.0,19406.0,0.357617]
[1664595783206,0.257452,19407.0,19405.0,1.49154744]
[1664595783416,0.257452,19407.0,19405.0,0.58973144]
[1664595783647,0.257452,19407.0,19405.0,0.51173144]
[1664595784135,0.257452,19407.0,19405.0,0.56173144]
[1664595784353,0.257452,19407.0,19405.0,1.54154744]
[1664595785140,0.257452,19407.0,19405.0,1.74284398]
[1664595785570,0.257452,19407.0,19405.0,1.66484398]
[1664595786293,0.257452,19407.0,19405.0,1.74284398]
[1664595786764,0.257452,19407.0,19405.0,1.69284398]
[1664595787422,0.257452,19407.0,19406.0,0.03595441]
[1664595787768,0.257452,19407.0,19405.0,1.61484398]
[1664595788209,0.257452,19407.0,19405.0,1.69284398]
[1664595789599,0.257452,19407.0,19405.0,1.61484398]
[1664595790349,0.257452,19407.0,19405.0,1.69284398]
[1664595791027,0.257452,19407.0,19406.0,0.357617]
[1664595791459,0.257452,19407.0,19405.0,1.69284398]
[1664595791972,0.257452,19407.0,19406.0,0.357617]
[1664595792226,0.257452,19407.0,19405.0,1.69284398]
[1664595792361,0.257452,19407.0,19406.0,0.357617]
[1664595792589,0.257452,19407.0,19405.0,1.69284398]
[1664595792799,0.257452,19407.0,19406.0,0.357617]
[1664595793183,0.257452,19407.0,19405.0,1.69284398]
[1664595793362,0.257452,19407.0,19405.0,1.74284398]
[1664595793542,0.257452,19407.0,19405.0,0.71302798]
[1664595794324,0.257452,19407.0,19405.0,0.79102798]
[1664595794532,0.257452,19407.0,19406.0,0.357617]
[1664595795162,0.257452,19407.0,19405.0,1.69284398]
[1664595795584,0.257452,19407.0,19405.0,1.61484398]
[1664595796028,0.257452,19407.0,19406.0,0.357617]
[1664595796675,0.257452,19407.0,19405.0,1.69284398]
[1664595796855,0.257452,19407.0,19406.0,0.03595441]
[1664595797100,0.257452,19407.0,19405.0,1.69284398]
[1664595797306,0.257452,19407.0,19405.0,0.79102798]
[1664595797780,0.257452,19407.0,19405.0,0.71302798]
[1664595798434,0.25735447,19407.0,19406.0,0.357617]
[1664595798649,0.25735447,19407.0,19406.0,0.03595441]
[1664595799380,0.25735447,19407.0,19406.0,0.411957]
[1664595800248,0.25735447,19407.0,19406.0,0.05434]
[1664595800461,0.25735447,19407.0,19406.0,0.13434]
[1664595801661,0.25735447,19407.0,19406.0,0.05434]
[1664595802335,0.25735447,19407.0,19406.0,0.13434]
[1664595803865,0.25735447,19407.0,19406.0,0.05434]
[1664595804552,0.25735447,19407.0,19406.0,0.13434]
[1664595805612,0.25735447,19407.0,19406.0,0.05434]
[1664595805861,0.25735447,19407.0,19406.0,0.61764474]
[1664595806036,0.12862847,19407.0,19406.0,0.92365716]
[1664595806252,0.12862847,19407.0,19406.0,0.61764474]
[1664595806468,0.12862847,19407.0,19406.0,0.69764474]
[1664595806681,0.12862847,19407.0,19406.0,0.34002774]
[1664595807549,0.257442,19408.0,19406.0,0.92365716]
[1664595807760,0.257442,19408.0,19407.0,0.17400394]
[1664595807974,0.128721,19408.0,19407.0,0.12179694]
[1664595808243,0.128721,19408.0,19406.0,0.66369369]
[1664595808388,0.128721,19408.0,19407.0,0.32516031]
[1664595808840,0.128721,19408.0,19407.0,0.83689175]
[1664595809056,0.128721,19408.0,19407.0,1.19450875]
[1664595809272,0.128721,19408.0,19407.0,1.13381435]
[1664595809701,0.128721,19408.0,19407.0,1.05381435]
[1664595810413,0.128721,19408.0,19407.0,1.13381435]
[1664595811479,0.128721,19408.0,19407.0,0.83689175]
[1664595811700,0.128721,19408.0,19407.0,0.75689175]
[1664595812420,0.128721,19408.0,19407.0,0.83689175]
[1664595813249,0.128721,19408.0,19407.0,1.14290417]
[1664595813416,0.128721,19408.0,19407.0,1.50052117]
[1664595813630,0.128721,19408.0,19407.0,1.42052117]
[1664595813832,0.128721,19408.0,19407.0,1.74004501]
[1664595814511,0.128721,19408.0,19407.0,1.15641559]
[1664595814728,0.128721,19408.0,19407.0,1.51403259]
[1664595814937,0.128721,19408.0,19407.0,1.82004501]
[1664595815623,0.128721,19408.0,19407.0,1.43403259]
[1664595815843,0.128721,19408.0,19407.0,1.74004501]
[1664595816099,0.128721,19408.0,19407.0,1.43403259]
[1664595816490,0.128721,19408.0,19407.0,1.51403259]
[1664595817587,0.128721,19408.0,19407.0,1.82004501]
[1664595817807,0.128721,19408.0,19407.0,1.74004501]
[1664595818295,0.128721,19408.0,19407.0,1.43403259]
[1664595818493,0.128721,19408.0,19407.0,1.51403259]
[1664595818967,0.128721,19408.0,19407.0,1.15641559]
[1664595819189,0.128721,19408.0,19407.0,1.51403259]
[1664595819642,0.128721,19408.0,19407.0,1.82004501]
[1664595819862,0.128721,19408.0,19407.0,1.74004501]
[1664595820121,0.128721,19408.0,19407.0,1.07641559]
[1664595820340,0.128721,19408.0,19407.0,1.74004501]
[1664595820563,0.128721,19408.0,19407.0,1.82004501]
[1664595821677,0.128721,19408.0,19407.0,1.07641559]
[1664595822179,0.128721,19408.0,19407.0,1.43403259]
[1664595822587,0.128721,19408.0,19407.0,1.51403259]
[1664595823633,0.128721,19408.0,19407.0,1.43403259]
[1664595823879,0.128721,19408.0,19407.0,1.74004501]
[1664595824098,0.128721,19408.0,19407.0,1.43403259]
[1664595824657,0.128721,19408.0,19407.0,1.51403259]
[1664595825209,0.128721,19408.0,19407.0,1.15641559]
[1664595825456,0.128721,19408.0,19407.0,1.51403259]
[1664595825900,0.128721,19408.0,19407.0,1.43403259]
[1664595826339,0.128721,19408.0,19407.0,1.4339636]
[1664595826672,0.128721,19408.0,19407.0,1.5139636]
[1664595827619,0.128721,19408.0,19407.0,0.83682276]
[1664595827830,0.128721,19408.0,19407.0,1.11443976]
[1664595828489,0.128721,19408.0,19407.0,1.19443976]
[1664595829713,0.128721,19408.0,19407.0,1.11443976]
[1664595830487,0.128721,19408.0,19407.0,1.19443976]
[1664595830711,0.128721,19408.0,19407.0,1.50423926]
[1664595831624,0.128721,19408.0,19407.0,1.50248126]
[1664595831850,0.128721,19408.0,19407.0,1.42248126]
[1664595832534,0.128721,19408.0,19407.0,1.50248126]
[1664595833905,0.128721,19408.0,19407.0,1.42248126]
[1664595834563,0.128721,19408.0,19407.0,1.80849368]
[1664595835038,0.128721,19408.0,19407.0,1.50248126]
[1664595835896,0.128721,19408.0,19407.0,1.42248126]
[1664595836564,0.128721,19408.0,19407.0,1.50248126]
[1664595837713,0.128721,19408.0,19407.0,1.42248126]
[1664595838588,0.128721,19408.0,19407.0,1.50248126]
[1664595839943,0.128721,19408.0,19407.0,1.42248126]
[1664595840595,0.128721,19408.0,19407.0,1.50248126]
[1664595842121,0.128721,19408.0,19407.0,1.42248126]
[1664595842592,0.128721,19408.0,19407.0,1.50248126]
[1664595843793,0.128721,19408.0,19407.0,1.42248126]
[1664595844475,0.128721,19408.0,19407.0,1.72849368]
[1664595844704,0.128721,19408.0,19407.0,1.80849368]
[1664595844986,0.128721,19408.0,19407.0,1.19268176]
[1664595845224,0.128721,19408.0,19407.0,0.83506476]
[1664595845888,0.128721,19408.0,19407.0,0.75506476]
[1664595846446,0.128721,19408.0,19407.0,0.83506476]
[1664595846878,0.128721,19408.0,19407.0,1.19268176]
[1664595847102,0.128721,19408.0,19407.0,0.83506476]
[1664595847316,0.128721,19408.0,19407.0,1.19268176]
[1664595847787,0.128721,19408.0,19407.0,1.11268176]
[1664595847994,0.128721,19408.0,19407.0,0.75506476]
[1664595848659,0.128721,19408.0,19407.0,0.83506476]
[1664595848893,0.128721,19408.0,19407.0,1.19268176]
[1664595849110,0.128721,19408.0,19407.0,0.83506476]
[1664595849601,0.128721,19408.0,19407.0,1.19268176]
[1664595849809,0.128721,19408.0,19407.0,1.11268176]
[1664595850394,0.128721,19408.0,19407.0,0.75506476]
[1664595850603,0.128721,19408.0,19407.0,1.19268176]
[1664595850818,0.128721,19408.0,19407.0,0.83506476]
[1664595851961,0.128721,19408.0,19407.0,1.11268176]
[1664595852720,0.128721,19408.0,19407.0,0.83506476]
[1664595853621,0.128721,19408.0,19407.0,1.19268176]
[1664595853828,0.128721,19408.0,19407.0,0.75506476]
[1664595854233,0.128721,19408.0,19407.0,1.11268176]
[1664595854425,0.128721,19408.0,19407.0,0.75506476]
[1664595854766,0.128721,19408.0,19407.0,1.19268176]
[1664595855630,0.128721,19408.0,19407.0,0.83506476]
[1664595855861,0.128721,19408.0,19407.0,1.19268176]
[1664595856090,0.128721,19408.0,19407.0,1.11268176]
[1664595856808,0.128721,19408.0,19407.0,1.19268176]
[1664595857032,0.128721,19408.0,19407.0,0.83506476]
[1664595857160,0.128721,19408.0,19407.0,1.19268176]
[1664595857590,0.128721,19408.0,19407.0,0.83506476]
[1664595857813,0.128721,19408.0,19407.0,1.11268176]
[1664595858544,0.128721,19408.0,19407.0,0.75506476]
[1664595858759,0.128721,19408.0,19407.0,1.19268176]
[1664595859190,0.128721,19408.0,19407.0,0.83506476]
[1664595860100,0.128721,19408.0,19407.0,0.51173144]
[1664595860854,0.128721,19408.0,19407.0,0.57773144]
[1664595861304,0.486338,19408.0,19407.0,0.57773144]
[1664595861716,0.128721,19408.0,19407.0,0.57773144]
[1664595861975,0.128721,19408.0,19407.0,0.51173144]
[1664595862515,0.128721,19408.0,19407.0,0.58573144]
[1664595863945,0.128721,19408.0,19407.0,0.51173144]
[1664595864739,0.128721,19408.0,19407.0,0.59173144]
[1664595865193,0.128721,19408.0,19407.0,0.94934844]
[1664595865410,0.128721,19408.0,19407.0,0.59173144]
[1664595866362,0.128721,19408.0,19407.0,0.51173144]
[1664595866820,0.128721,19408.0,19407.0,0.58573144]
[1664595867271,0.486338,19408.0,19407.0,0.58573144]
[1664595867494,0.128721,19408.0,19407.0,0.94334844]
[1664595867710,0.128721,19408.0,19407.0,0.58573144]
[1664595868010,0.128721,19408.0,19407.0,0.51173144]
[1664595868698,0.128721,19408.0,19407.0,0.59173144]
[1664595869853,0.128721,19408.0,19407.0,0.86934844]
[1664595870308,0.128721,19408.0,19407.0,0.51173144]
[1664595870764,0.128721,19408.0,19407.0,0.59173144]
[1664595871926,0.128721,19408.0,19407.0,0.51173144]
[1664595872154,0.128721,19408.0,19407.0,1.0606206]
[1664595872374,0.128721,19408.0,19407.0,1.3682376]
[1664595872827,0.128721,19408.0,19407.0,1.4482376]
[1664595873523,0.128721,19408.0,19407.0,1.5482376]
[1664595873775,0.257421,19409.0,19407.0,1.5482376]
[1664595874023,0.257421,19409.0,19408.0,0.51173144]
[1664595874828,0.257421,19409.0,19408.0,0.59173144]
[1664595875871,0.257421,19409.0,19408.0,0.51173144]
[1664595876716,0.257421,19409.0,19408.0,0.59173144]
[1664595877864,0.257421,19409.0,19408.0,0.51173144]
[1664595878539,0.252421,19409.0,19408.0,0.51173144]
[1664595878761,0.252421,19409.0,19408.0,0.59173144]
[1664595879006,0.252421,19409.0,19408.0,0.83810674]
[1664595879442,0.252421,19409.0,19408.0,0.88810674]
[1664595879662,0.252421,19409.0,19408.0,1.24572374]
[1664595879871,0.252421,19409.0,19408.0,1.16572374]
[1664595880297,0.252421,19409.0,19408.0,0.80810674]
[1664595880733,0.252421,19409.0,19408.0,0.83810674]
[1664595881506,0.252421,19409.0,19408.0,0.88810674]
[1664595881978,0.252421,19409.0,19408.0,0.80810674]
[1664595882387,0.252421,19409.0,19408.0,0.75810674]
[1664595882832,0.252421,19409.0,19408.0,0.83810674]
[1664595883030,0.252421,19409.0,19408.0,0.88810674]
[1664595884145,0.252421,19409.0,19408.0,0.83810674]
[1664595884363,0.252421,19409.0,19408.0,0.75810674]
[1664595884794,0.252421,19409.0,19408.0,0.59173144]
[1664595885952,0.252421,19409.0,19408.0,0.51173144]
[1664595886850,0.252421,19409.0,19408.0,0.59173144]
[1664595887303,0.252421,19409.0,19408.0,0.94934844]
[1664595887529,0.252421,19409.0,19408.0,0.59173144]
[1664595887961,0.252421,19409.0,19408.0,0.51173144]
[1664595888821,0.252421,19409.0,19408.0,0.59173144]
[1664595890063,0.252421,19409.0,19408.0,0.51173144]
[1664595890674,0.252421,19409.0,19408.0,0.86934844]
[1664595890858,0.252421,19409.0,19408.0,0.59173144]
[1664595892151,0.252421,19409.0,19408.0,0.51173144]
[1664595892848,0.252421,19409.0,19408.0,0.59173144]
[1664595893733,0.252421,19409.0,19408.0,0.83810674]
[1664595893958,0.252421,19409.0,19408.0,0.80810674]
[1664595894194,0.252421,19409.0,19408.0,1.16572374]
[1664595894576,0.252421,19409.0,19408.0,0.75810674]
[1664595894764,0.252421,19409.0,19408.0,0.88810674]
[1664595895017,0.252421,19409.0,19408.0,0.83810674]
[1664595895244,0.252421,19409.0,19408.0,0.59173144]
[1664595896039,0.252421,19409.0,19408.0,0.51173144]
[1664595896701,0.252421,19409.0,19408.0,0.59173144]
[1664595898060,0.252421,19409.0,19408.0,0.51173144]
[1664595898766,0.252421,19409.0,19408.0,0.59173144]
[1664595899443,0.252421,19409.0,19408.0,0.94934844]
[1664595899670,0.252421,19409.0,19408.0,0.59173144]
[1664595900125,0.252421,19409.0,19408.0,0.51173144]
[1664595900788,0.252421,19409.0,19408.0,0.59173144]
[1664595902184,0.252421,19409.0,19408.0,0.51173144]
[1664595902759,0.252421,19409.0,19408.0,0.59173144]
[1664595904514,0.252421,19409.0,19408.0,0.51173144]
[1664595904719,0.252421,19409.0,19408.0,0.59173144]
[1664595906111,0.252421,19409.0,19408.0,0.51173144]
[1664595906898,0.252421,19409.0,19408.0,0.59173144]
[1664595907967,0.252421,19409.0,19408.0,0.51173144]
[1664595908809,0.610038,19409.0,19408.0,0.59173144]
[1664595908991,0.252421,19409.0,19408.0,0.59173144]
[1664595909455,0.252421,19409.0,19408.0,0.62733916]
[1664595910128,0.252421,19409.0,19408.0,0.54733916]
[1664595911014,0.610038,19409.0,19408.0,0.62733916]
[1664595911256,0.252421,19409.0,19408.0,0.62733916]
[1664595912134,0.252421,19409.0,19408.0,0.54733916]
[1664595912351,0.252421,19409.0,19408.0,0.03560772]
[1664595912595,0.252421,19409.0,19408.0,0.03548863]
[1664595912596,0.91605042,19409.0,19408.0,0.03548863]
[1664595913048,0.95636782,19409.0,19408.0,0.11548863]
[1664595913910,0.91605042,19409.0,19408.0,0.11548863]
[1664595914098,0.91605042,19409.0,19408.0,0.03548863]
[1664595915046,0.55843342,19409.0,19408.0,0.10048863]
[1664595916099,0.252421,19409.0,19408.0,0.10048863]
[1664595916496,0.252421,19409.0,19408.0,0.03548863]
[1664595916901,0.252421,19409.0,19408.0,0.10048863]
[1664595917724,0.252421,19409.0,19408.0,0.45810563]
[1664595917938,0.252421,19409.0,19408.0,0.10048863]
[1664595918156,0.252421,19409.0,19408.0,0.08982863]
[1664595918761,0.252421,19409.0,19408.0,0.03548863]
[1664595918979,0.252421,19409.0,19408.0,0.10848863]
[1664595920024,0.252421,19409.0,19408.0,0.03548863]
[1664595920864,0.252421,19409.0,19408.0,0.10848863]
[1664595922120,0.252421,19409.0,19408.0,0.03548863]
[1664595922579,0.252421,19409.0,19408.0,0.39310563]
[1664595922832,0.252421,19409.0,19408.0,0.03548863]
[1664595923055,0.252421,19409.0,19408.0,0.11548863]
[1664595923501,0.252421,19409.0,19408.0,0.62722007]
[1664595923758,0.252421,19409.0,19408.0,0.82561844]
[1664595924190,0.252421,19409.0,19408.0,0.74561844]
[1664595924410,0.252421,19409.0,19408.0,0.54722007]
[1664595925103,0.252421,19409.0,19408.0,0.62722007]
[1664595926165,0.252421,19409.0,19408.0,0.54722007]
[1664595926967,0.252421,19409.0,19408.0,0.62722007]
[1664595928171,0.252421,19409.0,19408.0,0.54722007]
[1664595929182,0.252421,19409.0,19408.0,0.62722007]
[1664595930379,0.252421,19409.0,19408.0,0.54722007]
[1664595931041,0.252421,19409.0,19408.0,0.62722007]
[1664595932132,0.252421,19409.0,19408.0,0.54722007]
[1664595932903,0.252421,19409.0,19408.0,0.62722007]
[1664595933574,0.252421,19409.0,19408.0,0.98483707]
[1664595933823,0.252421,19409.0,19408.0,0.91290574]
[1664595934290,0.252421,19409.0,19408.0,0.83290574]
[1664595935061,0.252421,19409.0,19408.0,0.91290574]
[1664595935873,0.252421,19409.0,19408.0,0.96290574]
[1664595936301,0.252421,19409.0,19408.0,0.83290574]
[1664595937178,0.252421,19409.0,19408.0,0.91290574]
[1664595937607,0.252421,19409.0,19408.0,0.62722007]
[1664595938090,0.26609544,19409.0,19408.0,0.62722007]
[1664595938307,0.26609544,19409.0,19408.0,0.54722007]
[1664595939005,0.26609544,19409.0,19408.0,0.62722007]
[1664595940259,0.26609544,19409.0,19408.0,0.54722007]
[1664595941138,0.26609544,19409.0,19408.0,0.62722007]
[1664595942315,0.26609544,19409.0,19408.0,0.54722007]
[1664595942996,0.26609544,19409.0,19408.0,0.98483707]
[1664595943223,0.26609544,19409.0,19408.0,1.32052274]
[1664595943424,0.26609544,19409.0,19408.0,0.67722007]
[1664595943551,0.26609544,19409.0,19408.0,1.03483707]
[1664595943773,0.26609544,19409.0,19408.0,1.08483707]
[1664595944107,0.01367444,19409.0,19408.0,0.72722007]
[1664595944252,0.01367444,19409.0,19408.0,1.54890807]
[1664595944476,0.01367444,19409.0,19408.0,1.85492049]
[1664595944689,0.01367444,19409.0,19408.0,5.00617005]
[1664595944916,0.01367444,19409.0,19408.0,5.44378705]
[1664595945359,0.01367444,19409.0,19408.0,2.62173449]
[1664595946275,0.01367444,19409.0,19408.0,2.54173449]
[1664595946789,0.01359547,19409.0,19408.0,2.54173449]
[1664595947052,0.01359547,19409.0,19408.0,2.26411749]
[1664595947256,0.01359547,19409.0,19408.0,2.62173449]
[1664595948262,0.01359547,19409.0,19408.0,2.54173449]
[1664595949182,0.01359547,19409.0,19408.0,2.62173449]
[1664595950380,0.01359547,19409.0,19408.0,2.54173449]
[1664595950994,0.01359547,19409.0,19408.0,2.62173449]
[1664595952284,0.01359547,19409.0,19408.0,2.54173449]
[1664595952967,0.01359547,19409.0,19408.0,2.62173449]
[1664595953194,0.01359547,19409.0,19408.0,2.26411749]
[1664595953381,0.01359547,19409.0,19408.0,2.62173449]
[1664595953640,0.01359547,19409.0,19408.0,2.26411749]
[1664595953820,0.01359547,19409.0,19408.0,2.62173449]
[1664595954363,0.01359547,19409.0,19408.0,2.54173449]
[1664595955110,0.01359547,19409.0,19408.0,2.62173449]
[1664595956351,0.01359547,19409.0,19408.0,2.54173449]
[1664595957236,0.01359547,19409.0,19408.0,3.22173449]
[1664595957461,0.01359547,19409.0,19408.0,2.62173449]
[1664595958354,0.01359547,19409.0,19408.0,2.54173449]
[1664595958571,0.01602593,19409.0,19408.0,2.54173449]
[1664595959113,0.01602593,19409.0,19408.0,3.22173449]
[1664595960281,0.01602593,19409.0,19408.0,3.14173449]
[1664595960511,0.01602593,19409.0,19408.0,2.54173449]
[1664595960763,0.01602593,19409.0,19408.0,3.14173449]
[1664595960972,0.01602593,19409.0,19408.0,2.54173449]
[1664595961084,0.01602593,19409.0,19408.0,2.26411749]
[1664595961294,0.01602593,19409.0,19408.0,2.62173449]
[1664595962204,0.01602593,19409.0,19408.0,2.54173449]
[1664595963163,0.01602593,19409.0,19408.0,3.22173449]
[1664595963399,0.01602593,19409.0,19408.0,2.62173449]
[1664595963618,0.01602593,19409.0,19408.0,3.22173449]
[1664595964414,0.01602593,19409.0,19408.0,3.14173449]
[1664595965064,0.01602593,19409.0,19408.0,3.22173449]
[1664595965282,0.01602593,19409.0,19408.0,2.62173449]
[1664595965557,0.01602593,19409.0,19408.0,6.7220059]
[1664595965756,0.01602593,19409.0,19408.0,4.23333218]
[1664595966549,0.01602593,19409.0,19408.0,1.84190507]
[1664595966984,0.01602593,19409.0,19408.0,2.19952207]
[1664595967202,0.01602593,19409.0,19408.0,2.58553449]
[1664595967978,0.01602593,19409.0,19408.0,2.68553449]
[1664595968428,0.01602593,19409.0,19408.0,2.60553449]
[1664595969300,0.01602593,19409.0,19408.0,2.68553449]
[1664595970384,0.01602593,19409.0,19408.0,2.60553449]
[1664595970646,0.01602593,19409.0,19408.0,3.20553449]
[1664595971081,0.01602593,19409.0,19408.0,3.28553449]
[1664595971736,0.01596151,19409.0,19408.0,3.28553449]
[1664595972429,0.01596151,19409.0,19408.0,3.20553449]
[1664595973202,0.01596151,19409.0,19408.0,3.28553449]
[1664595974084,0.01596151,19409.0,19408.0,4.18553449]
[1664595974602,0.01596151,19409.0,19408.0,4.10553449]
[1664595975277,0.01596151,19409.0,19408.0,4.18553449]
[1664595976421,0.01596151,19409.0,19408.0,4.10553449]
[1664595977352,0.01596151,19409.0,19408.0,4.18553449]
[1664595978388,0.01596151,19409.0,19408.0,4.10553449]
[1664595979255,0.01596151,19409.0,19408.0,4.18553449]
[1664595980393,0.01596151,19409.0,19408.0,4.10553449]
[1664595981355,0.01596151,19409.0,19408.0,4.18553449]
[1664595982476,0.01596151,19409.0,19408.0,4.10553449]
[1664595983256,0.01596151,19409.0,19408.0,4.18553449]
[1664595984391,0.01596151,19409.0,19408.0,4.10553449]
[1664595985336,0.01596151,19409.0,19408.0,4.18553449]
[1664595985765,0.01596151,19409.0,19408.0,4.18543632]
[1664595986457,0.01596151,19409.0,19408.0,4.10543632]
[1664595987126,0.01596151,19409.0,19408.0,2.60543632]
[1664595987351,0.01596151,19409.0,19408.0,2.0218069]
[1664595987529,0.01596151,19409.0,19408.0,2.68543632]
[1664595987744,0.01596151,19409.0,19408.0,3.28543632]
[1664595988150,0.01596151,19409.0,19408.0,2.68543632]
[1664595988549,0.01596151,19409.0,19408.0,3.20543632]
[1664595988749,0.01596151,19409.0,19408.0,2.24781932]
[1664595988984,0.01596151,19409.0,19408.0,2.60543632]
[1664595989098,0.01596151,19409.0,19408.0,3.28543632]
[1664595990113,0.01596151,19409.0,19408.0,6.07532814]
[1664595990594,0.01596151,19409.0,19408.0,5.99532814]
[1664595991032,0.01596151,19409.0,19408.0,5.39532814]
[1664595991248,0.01596151,19409.0,19408.0,5.47532814]
[1664595991619,0.01596151,19409.0,19408.0,5.11771114]
[1664595991832,0.01596151,19409.0,19408.0,2.68543632]
[1664595992457,0.01596151,19409.0,19408.0,1.9418069]
[1664595992670,0.01596151,19409.0,19408.0,2.2994239]
[1664595992858,0.01596151,19409.0,19408.0,5.80652507]
[1664595993070,0.01596151,19409.0,19408.0,1.44890807]
[1664595993342,0.01596151,19409.0,19408.0,1.52890807]
[1664595993809,0.01596151,19409.0,19408.0,1.88652507]
[1664595994410,0.01596151,19409.0,19408.0,1.80652507]
[1664595995207,0.01596151,19409.0,19408.0,1.57190807]
[1664595995342,0.01596151,19409.0,19408.0,1.87952507]
[1664595995566,0.01596151,19409.0,19408.0,1.57190807]
[1664595995776,0.01596151,19409.0,19408.0,1.92952507]
[1664595996185,0.01596151,19409.0,19408.0,1.87952507]
[1664595996514,0.01596151,19409.0,19408.0,1.80652507]
[1664595997016,0.01596151,19409.0,19408.0,1.85652507]
[1664595997229,0.01596151,19409.0,19408.0,1.52190807]
[1664595997491,0.01596151,19409.0,19408.0,1.87952507]
[1664595998368,0.01596151,19409.0,19408.0,0.62022007]
[1664595998369,0.52681326,19409.0,19408.0,0.62022007]
[1664595998627,0.67959093,19409.0,19408.0,0.03548863]
[1664595999063,0.01596151,19409.0,19408.0,0.03548863]
[1664595999274,0.01596151,19409.0,19408.0,0.11548863]
[1664595999384,0.37357851,19409.0,19408.0,0.11548863]
[1664596000465,0.37357851,19409.0,19408.0,0.03548863]
[1664596001138,0.37357851,19409.0,19408.0,0.10548863]
[1664596002511,0.37357851,19409.0,19408.0,0.03548863]
[1664596003232,0.37357851,19409.0,19408.0,0.11448863]
[1664596004456,0.37357851,19409.0,19408.0,0.03548863]
[1664596005302,0.37357851,19409.0,19408.0,0.11448863]
[1664596006598,0.37357851,19409.0,19408.0,0.03548863]
[1664596007374,0.37357851,19409.0,19408.0,0.11448863]
[1664596007612,0.01596151,19409.0,19408.0,0.11448863]
[1664596007850,0.37357851,19409.0,19408.0,0.11448863]
[1664596008530,0.37357851,19409.0,19408.0,0.03548863]
[1664596008754,0.01596151,19409.0,19408.0,0.03548863]
[1664596009249,0.37357851,19409.0,19408.0,0.03548863]
[1664596009468,0.37357851,19409.0,19408.0,0.11448863]
[1664596009688,0.01596151,19409.0,19408.0,0.11448863]
[1664596009913,0.37357851,19409.0,19408.0,0.11448863]
[1664596010930,0.01596151,19409.0,19408.0,0.03548863]
[1664596011143,0.37357851,19409.0,19408.0,0.03548863]
[1664596011363,0.37357851,19409.0,19408.0,0.11448863]
[1664596012668,0.37357851,19409.0,19408.0,0.03548863]
[1664596012925,0.01596151,19409.0,19408.0,0.03548863]
[1664596013369,0.01596151,19409.0,19408.0,0.11448863]
[1664596014266,0.37357851,19409.0,19408.0,0.11448863]
[1664596014714,0.37357851,19409.0,19408.0,0.03538753]
[1664596015433,0.37357851,19409.0,19408.0,0.11438753]